bitfinex-derivatives/quotes_ETHF0:USTF0_20250620
["timestamp","ask_amount","ask_price","bid_price","bid_amount"]
[1750459295894,4.04267,2395.4,2395.2,8.75889]
[1750459296099,0.83488,2395.3,2395.2,8.75889]
[1750459296298,5.40675,2395.4,2395.3,0.83488]
[1750459296606,4.5719,2395.4,2395.3,0.83488]
[1750459296906,5.40674,2395.4,2395.3,0.83488]
[1750459297399,3.2078,2395.4,2395.3,0.83488]
[1750459298104,3.2078,2395.4,2395.3,28.81588]
[1750459299705,1.4009,2395.9,2395.7,0.83472]
[1750459300007,2.23558,2395.9,2395.8,7.925]
[1750459300204,1.4009,2395.9,2395.8,7.925]
[1750459300407,0.83467,2395.9,2395.8,7.925]
[1750459300609,4.04245,2396.0,2395.9,0.83467]
[1750459300904,4.04245,2396.0,2395.4,0.7022]
[1750459300905,3.2078,2396.0,2395.4,0.7022]
[1750459301098,4.04259,2395.6,2395.5,7.925]
[1750459301305,3.2078,2395.6,2395.5,8.75981]
[1750459301703,3.2078,2395.6,2395.2,0.6895]
[1750459301903,3.2078,2395.4,2395.3,36.71988]
[1750459302297,4.04257,2395.7,2395.4,0.83481]
[1750459302505,3.2078,2395.7,2395.6,0.83477]
[1750459302702,3.2078,2395.7,2395.6,28.79077]
[1750459304108,2.08631,2396.4,2395.6,28.79077]
[1750459304109,4.04246,2396.0,2395.8,0.83469]
[1750459304406,3.2078,2396.0,2395.9,8.75867]
[1750459304811,4.5853,2396.0,2395.9,8.75867]
[1750459305002,3.2078,2396.0,2395.9,8.75867]
[1750459305202,3.2078,2396.0,2395.9,36.68067]
[1750459305996,5.41983,2396.3,2396.2,0.83457]
[1750459306205,4.5853,2396.3,2396.2,0.83457]
[1750459308407,4.5853,2396.3,2396.2,28.72357]
[1750459308613,4.5853,2396.3,2396.2,0.83457]
[1750459308811,4.5853,2396.3,2396.2,36.59957]
[1750459312306,0.83458,2396.2,2395.8,50.16877]
[1750459312505,3.2078,2396.0,2395.9,36.59566]
[1750459313120,4.5033,2396.0,2395.9,36.59566]
[1750459313615,5.33794,2396.0,2395.9,36.59566]
[1750459313818,4.5033,2396.0,2395.9,36.59566]
[1750459314015,4.5033,2396.0,2395.9,35.761]
[1750459314219,5.33794,2396.0,2395.9,35.761]
[1750459315417,3.2078,2396.0,2395.9,36.59567]
[1750459316021,4.04234,2396.3,2396.1,0.83458]
[1750459316210,4.04234,2396.3,2395.9,36.4553]
[1750459316211,4.04234,2396.3,2396.2,27.706]
[1750459319118,3.2078,2396.0,2394.1,8.13914666]
[1750459319419,3.2078,2394.5,2393.7,9.89512506]
[1750459319610,4.04297,2394.5,2394.1,0.83528]
[1750459319815,4.04297,2394.5,2394.0,6.68732506]
[1750459319816,3.2078,2394.5,2394.2,29.46724]
[1750459320012,3.2078,2394.5,2394.3,0.83522]
[1750459320212,4.04297,2394.5,2394.3,37.076]
[1750459320419,4.04296,2394.5,2394.3,37.076]
[1750459320819,0.8352,2394.4,2394.0,7.52263506]
[1750459321029,0.8352,2394.4,2394.1,37.056]
[1750459321217,3.2078,2394.2,2393.6,8.00622506]
[1750459321422,3.2078,2394.2,2393.9,7.52265506]
[1750459321617,3.2078,2394.5,2394.2,0.83525]
[1750459321818,3.2078,2394.5,2394.3,37.052]
[1750459322222,3.2078,2394.8,2394.3,1.4014]
[1750459322523,0.83514,2394.6,2394.4,37.042]
[1750459322716,3.2078,2394.8,2394.5,7.52247506]
[1750459323017,3.2078,2394.8,2391.5,3.2078]
[1750459323018,3.2078,2393.2,2391.5,3.2078]
[1750459323213,3.2078,2393.2,2391.6,0.83615]
[1750459323214,3.2078,2392.1,2391.6,0.83615]
[1750459323413,3.2078,2391.8,2391.7,0.08362252]
[1750459323822,9.0439,2391.8,2391.7,0.08362252]
[1750459324015,8.2078,2391.8,2391.7,0.08362252]
[1750459324221,8.2078,2391.8,2391.6,0.08362602]
[1750459324222,0.83614,2391.7,2391.6,0.08362602]
[1750459324519,3.2078,2391.8,2391.6,1e-08]
[1750459325022,3.2078,2391.8,2390.3,4.0]
[1750459325023,5.29833,2391.5,2390.3,4.0]
[1750459325215,10.82890982,2390.4,2389.6,0.24520762]
[1750459325416,3.2078,2390.1,2389.6,3.69821524]
[1750459325612,3.2078,2390.3,2389.6,0.49041524]
[1750459325917,3.2078,2390.0,2389.6,0.24520762]
[1750459326115,0.83684,2389.7,2389.6,9.35420762]
[1750459326316,3.2078,2389.9,2389.6,9.35420762]
[1750459326520,3.2078,2389.9,2389.6,9.59941524]
[1750459326726,3.2078,2389.9,2389.6,0.49041524]
[1750459326927,3.2078,2389.9,2389.7,9.109]
[1750459327224,21.30290982,2389.8,2387.7,3.2078]
[1750459327413,3.2078,2389.3,2388.7,3.2078]
[1750459327613,3.2078,2389.3,2388.1,7.62110982]
[1750459327614,3.2078,2389.5,2388.9,7.62110982]
[1750459327820,2.09116,2390.8,2388.4,30.34]
[1750459327821,3.2078,2389.8,2389.1,7.62110982]
[1750459328020,3.2078,2389.4,2389.2,48.111]
[1750459328323,3.2078,2390.4,2389.3,3.2078]
[1750459328539,3.2078,2389.8,2389.4,7.62110982]
[1750459328716,3.2078,2390.5,2389.7,10.82890982]
[1750459329020,7.62110982,2391.8,2389.7,10.82890982]
[1750459329021,3.2078,2391.1,2390.4,8.45768982]
[1750459329215,3.2078,2391.1,2390.9,7.62110982]
[1750459329416,3.2078,2391.1,2391.0,9.817]
[1750459330213,3.2078,2391.1,2391.0,14.817]
[1750459330423,3.2078,2391.1,2391.0,16.2458]
[1750459331125,3.2078,2391.1,2391.0,6.4288]
[1750459331422,1.3317,2392.2,2391.0,19.4536]
[1750459331423,3.2078,2391.7,2391.0,19.4536]
[1750459331727,3.2078,2392.3,2391.6,3.2078]
[1750459331919,3.2078,2392.6,2392.0,7.62110982]
[1750459332123,3.2078,2392.3,2392.1,9.819]
[1750459332523,3.2078,2392.3,2392.1,11.2478]
[1750459332723,0.08360504,2392.2,2392.1,11.2478]
[1750459332925,0.08360504,2392.2,2392.1,17.08379]
[1750459333327,0.08360504,2392.2,2392.1,16.2478]
[1750459333522,0.08360504,2392.2,2391.2,3.2078]
[1750459333729,0.08360504,2392.2,2391.5,11.66508982]
[1750459334026,0.08360504,2392.2,2391.8,7.62110982]
[1750459334221,0.08360504,2392.2,2391.9,1.4304]
[1750459334720,3.2078,2392.6,2392.1,7.62110982]
[1750459334921,4.04364,2392.6,2392.2,11.2494]
[1750459335123,3.2078,2392.3,2392.2,11.2494]
[1750459335928,3.2078,2392.6,2392.2,11.2494]
[1750459336228,3.2078,2392.3,2392.2,11.2494]
[1750459336424,3.2078,2392.6,2392.2,9.819]
[1750459337126,3.2078,2393.2,2392.4,7.62110982]
[1750459337326,3.2078,2393.7,2393.1,10.82890982]
[1750459337529,3.2078,2393.7,2393.4,3.2078]
[1750459337830,1.3742,2394.0,2393.4,3.2078]
[1750459337831,3.2078,2394.0,2393.5,3.2078]
[1750459338027,1.3742,2394.5,2393.8,7.62110982]
[1750459338229,3.2078,2394.3,2393.9,9.819]
[1750459338429,3.2078,2394.3,2393.3,3.2078]
[1750459338631,3.2078,2393.7,2393.2,3.2078]
[1750459338830,2.20948,2394.2,2393.6,10.82890982]
[1750459339035,3.2078,2394.3,2393.9,7.62110982]
[1750459339327,3.2078,2394.3,2394.0,9.819]
[1750459339727,3.2078,2394.3,2394.1,0.04135478]
[1750459340331,0.83526,2394.2,2394.1,0.04135478]
[1750459340628,3.2078,2394.3,2394.1,0.04135478]
[1750459340836,4.04303,2394.3,2394.2,0.04135478]
[1750459341930,4.17665,2394.1,2392.6,3.2078]
[1750459342134,3.2078,2393.2,2392.9,7.62110982]
[1750459342334,3.2078,2393.2,2392.9,17.43810982]
[1750459342637,3.2078,2393.2,2392.9,18.27381982]
[1750459342935,3.2078,2393.4,2392.9,7.62110982]
[1750459343125,0.83559,2393.3,2393.0,9.817]
[1750459343321,4.04336,2393.4,2393.0,9.817]
[1750459343542,3.2078,2393.4,2392.7,51.3438]
[1750459343732,2.08842,2394.0,2392.7,51.3438]
[1750459343733,3.2078,2393.1,2392.8,9.816]
[1750459343931,0.8357,2393.0,2392.8,9.816]
[1750459344130,4.04347,2393.1,2392.8,9.816]
[1750459344330,3.2078,2393.1,2392.8,9.816]
[1750459344525,4.04346,2393.1,2392.8,9.816]
[1750459344735,3.2078,2393.1,2392.8,9.816]
[1750459345438,4.04346,2393.1,2392.8,9.816]
[1750459345735,3.2078,2393.8,2392.7,48.136]
[1750459345934,0.83559,2393.3,2392.9,9.816]
[1750459346135,3.2078,2393.4,2392.0,0.6582]
[1750459346337,3.2078,2393.1,2392.2,78.749]
[1750459346635,0.83565,2393.1,2392.4,3.2078]
[1750459346837,3.2078,2393.2,2392.4,3.2078]
[1750459346838,0.83571,2393.0,2392.4,4.04367]
[1750459347038,1.3202,2393.0,2392.4,4.04367]
[1750459347338,2.1559,2393.0,2392.5,13.0228]
[1750459347636,2.1559,2393.0,2392.5,13.85865]
[1750459347837,0.83567,2393.1,2392.6,10.6508]
[1750459348029,0.83571,2393.0,2392.6,9.815]
[1750459348222,1.3202,2393.1,2392.2,48.133]
[1750459348427,3.2078,2393.0,2392.4,3.2078]
[1750459348936,0.83565,2393.1,2392.7,0.83578]
[1750459349236,3.2078,2393.0,2392.8,9.815]
[1750459349837,1.3542,2393.3,2392.9,0.83569]
[1750459350037,2.1898,2393.3,2392.8,9.815]
[1750459350233,0.83565,2393.1,2392.8,9.815]
[1750459350435,3.2078,2393.2,2392.9,0.8357]
[1750459351044,4.04342,2393.2,2392.8,10.65073]
[1750459351242,3.2078,2393.2,2392.9,0.83571]
[1750459351934,3.2078,2393.2,2392.8,11.1855]
[1750459351935,3.2078,2393.2,2393.0,0.83567]
[1750459352135,3.2078,2393.2,2392.9,0.83569]
[1750459352538,3.2078,2393.2,2393.0,0.83568]
[1750459352735,3.2078,2393.2,2392.8,11.1855]
[1750459352736,3.2078,2393.2,2392.8,9.815]
[1750459352928,4.04343,2393.2,2392.8,9.815]
[1750459353331,0.83565,2393.1,2392.8,9.815]
[1750459353527,0.83567,2393.1,2392.8,9.815]
[1750459353731,2.14807,2393.1,2392.8,9.815]
[1750459354134,1.3124,2393.1,2392.8,9.815]
[1750459354337,2.14806,2393.1,2392.8,9.815]
[1750459354541,1.3124,2393.1,2392.8,9.815]
[1750459354728,3.2078,2392.9,2392.8,9.815]
[1750459354934,3.2078,2392.9,2392.8,10.65075]
[1750459355541,3.2078,2392.9,2392.8,9.816]
[1750459356045,4.04343,2393.2,2392.8,10.65172]
[1750459356237,3.2078,2393.2,2392.8,9.816]
[1750459356735,3.2078,2393.2,2392.9,0.8357]
[1750459356936,3.2078,2393.2,2392.8,9.816]
[1750459357136,3.2078,2393.2,2392.9,0.8357]
[1750459357339,3.2078,2393.2,2393.1,0.83565]
[1750459357737,3.2078,2393.5,2392.9,3.2078]
[1750459358042,2.15564,2393.4,2393.0,0.83567]
[1750459358439,3.2078,2393.2,2392.4,2.08973]
[1750459358744,1.3201,2393.1,2393.0,0.83568]
[1750459358943,1.3201,2393.1,2393.0,10.65168]
[1750459359640,3.2078,2393.2,2393.1,0.83565]
[1750459360639,3.2078,2393.2,2389.0,9.732]
[1750459360640,8.2078,2393.2,2389.0,9.732]
[1750459360840,8.2078,2393.2,1353.4,0.005]
[1750459360841,3.2078,2391.6,2390.5,3.2078]
[1750459361043,3.2078,2391.6,2391.5,0.8362]
[1750459361738,3.2078,2391.6,2391.4,40.712]
[1750459361940,1.3786,2392.0,2391.9,0.83606]
[1750459362145,1.3786,2392.0,2391.4,40.712]
[1750459362146,1.3786,2392.0,2391.8,0.83608]
[1750459362336,1.3786,2392.0,2391.9,0.83606]
[1750459362542,1.3786,2392.0,2391.8,9.863]
[1750459362952,3.2078,2392.1,2391.8,9.863]
[1750459363544,3.2078,2392.1,2391.9,0.83606]
[1750459363748,3.2078,2392.1,2391.8,9.863]
[1750459364048,3.2078,2392.1,2391.9,9.863]
[1750459364243,1.381,2392.0,2391.9,9.863]
[1750459364444,1.381,2392.0,2391.9,10.69906]
[1750459364745,3.2078,2392.1,2391.9,9.863]
[1750459365346,1.381,2392.0,2391.9,9.863]
[1750459365546,1.381,2392.0,2391.9,0.83606]
[1750459366546,3.2078,2392.1,2392.0,0.83603]
[1750459369447,3.2078,2392.1,2391.8,9.864]
[1750459369649,3.2078,2392.1,2392.0,0.83603]
[1750459370651,8.2078,2392.1,2391.8,10.70009]
[1750459370853,1.4083,2392.0,2391.8,10.70009]
[1750459371149,5.58847,2392.0,2390.9,3.2078]
[1750459371351,3.2078,2391.1,2390.0,3.2078]
[1750459371549,3.2078,2390.7,2390.1,2.09174]
[1750459371853,3.2078,2390.7,2390.6,0.83652]
[1750459374057,3.2078,2391.0,2390.4,11.95748]
[1750459374243,3.2078,2391.0,2390.5,1.3552]
[1750459374449,3.2078,2391.0,2390.9,0.83641]
[1750459374644,3.2078,2391.0,2390.9,10.70441]
[1750459375052,1.3739,2391.6,2391.5,0.8362]
[1750459375255,3.2078,2391.7,2391.0,1.3552]
[1750459375459,3.2078,2391.4,2391.3,0.83627]
[1750459380961,3.2078,2391.4,2390.7,3.2078]
[1750459381173,3.2078,2390.9,2390.5,0.83653]
[1750459381377,3.2078,2390.6,2390.5,0.83655]
[1750459381868,3.2078,2390.6,2390.4,10.70557]
[1750459382069,4.04435,2390.6,2390.4,9.869]
[1750459382264,2.24035,2390.5,2390.4,9.869]
[1750459382777,0.83659,2390.4,2390.1,48.166]
[1750459383076,3.2078,2390.2,2390.1,58.036]
[1750459383777,4.6116,2390.2,2390.1,58.036]
[1750459383977,4.6116,2390.2,2390.1,58.87269]
[1750459384675,4.6116,2390.2,2390.1,58.036]
[1750459384876,3.2078,2390.2,2390.1,49.00269]
[1750459385178,3.2078,2390.2,2390.1,58.87269]
[1750459386876,3.2078,2390.2,2390.0,30.524]
[1750459386877,3.2078,2390.2,2390.0,0.83671]
[1750459387069,3.2078,2390.2,2389.6,9.871]
[1750459387070,3.2078,2390.2,2390.1,10.7077]
[1750459387577,25.71760042,2390.2,2388.5,3.2078]
[1750459387875,3.2078,2389.2,2389.1,0.83704]
[1750459388068,3.2078,2389.2,2389.0,0.83706]
[1750459388271,3.2078,2389.2,2388.7,9.871]
[1750459388272,4.04483,2389.2,2388.7,10.70816]
[1750459388471,3.2078,2388.8,2388.7,10.70819]
[1750459388675,4.6018,2389.1,2388.7,9.871]
[1750459388875,4.6018,2389.1,2388.8,9.873]
[1750459389377,3.2078,2389.1,2389.0,0.83708]
[1750459389571,3.2078,2389.1,2388.9,0.8371]
[1750459389774,3.2078,2389.1,2389.0,10.71008]
[1750459389981,3.2078,2389.4,2389.0,9.873]
[1750459390278,3.2078,2389.1,2389.0,10.71006]
[1750459390472,1.394,2389.3,2389.2,0.83701]
[1750459390673,3.2078,2389.4,2389.3,0.83698]
[1750459391072,3.2078,2389.4,2389.3,10.69298]
[1750459391275,3.2078,2389.7,2389.4,2.09234]
[1750459391475,3.2078,2390.0,2389.9,0.83677]
[1750459391677,3.2078,2390.6,2390.2,0.83666]
[1750459391980,3.2078,2391.0,2389.8,2.0449]
[1750459392181,3.2078,2390.4,2390.3,0.83663]
[1750459392681,3.2078,2390.4,2390.0,1.3778]
[1750459392983,3.2078,2390.4,2390.3,0.83662]
[1750459393879,3.2078,2390.8,2390.5,0.83653]
[1750459394078,3.2078,2390.8,2390.7,0.83648]
[1750459394286,3.2078,2390.8,2390.7,10.69448]
[1750459395084,4.5593,2391.3,2391.2,0.83631]
[1750459395380,4.5593,2391.3,2391.2,10.69331]
[1750459396781,4.5593,2391.3,2391.0,9.857]
[1750459396987,3.2078,2391.3,2391.2,0.83631]
[1750459398887,3.2078,2391.3,2390.8,2.09106]
[1750459398888,0.8364,2391.0,2390.8,9.856]
[1750459399181,5.41342,2390.9,2390.8,9.856]
[1750459399489,4.577,2390.9,2390.8,10.69245]
[1750459399679,3.2078,2390.9,2390.8,10.69245]
[1750459400176,3.2078,2391.2,2391.1,0.83635]
[1750459400383,3.2078,2391.2,2390.8,9.856]
[1750459400583,1.3503,2391.1,2391.0,0.83637]
[1750459401588,3.2078,2391.2,2390.8,40.442]
[1750459401791,3.2078,2391.2,2391.0,0.83636]
[1750459402188,1.3503,2391.1,2391.0,0.83636]
[1750459403284,1.3503,2391.1,2390.9,0.8364]
[1750459403482,1.3503,2391.1,2391.0,10.69238]
[1750459403687,1.3503,2391.1,2391.0,10.69138]
[1750459406796,3.2078,2391.2,2391.1,0.83635]
[1750459412797,3.2078,2391.2,2391.1,40.45135]
[1750459413196,3.2078,2391.5,2391.2,0.83631]
[1750459413396,3.2078,2391.5,2391.4,0.83624]
[1750459413899,3.2078,2391.9,2391.4,0.83624]
[1750459414090,3.2078,2391.9,2391.8,0.8361]
[1750459414295,3.2078,2391.9,2391.8,10.3511]
[1750459417691,1.4173,2392.4,2392.3,0.83593]
[1750459417888,3.2078,2392.5,2392.4,0.83589]
[1750459418992,1.4173,2392.7,2392.6,0.83582]
[1750459420198,1.4173,2392.7,2392.3,9.513]
[1750459420398,3.2078,2392.5,2392.3,9.513]
[1750459420700,3.2078,2392.5,2392.4,0.83589]
[1750459421299,3.2078,2392.8,2392.4,0.83589]
[1750459421504,3.2078,2392.8,2392.7,0.83579]
[1750459423192,3.2078,2392.8,2392.7,10.01779]
[1750459423593,3.2078,2393.1,2393.0,0.83568]
[1750459423806,3.2078,2393.1,2393.0,30.57968]
[1750459424604,3.2078,2393.1,2393.0,29.744]
[1750459424797,3.2078,2393.1,2392.4,2.0897]
[1750459425003,3.2078,2392.8,2392.7,0.83579]
[1750459425509,3.2078,2392.8,2392.7,38.865]
[1750459425800,4.04355,2392.8,2392.7,38.865]
[1750459426008,4.04355,2392.8,2392.7,38.854]
[1750459426701,3.2078,2392.8,2392.7,39.68979]
[1750459428002,3.2078,2392.8,2392.7,0.83579]
[1750459428205,3.2078,2392.8,2392.7,39.60279]
[1750459428600,3.2078,2392.8,2392.7,38.757]
[1750459428808,4.04355,2392.8,2392.7,38.757]
[1750459429004,3.2078,2392.8,2392.7,39.59279]
[1750459431607,3.2078,2392.8,2392.7,46.29874279]
[1750459431803,0.83555,2393.4,2392.9,2.08923]
[1750459431804,3.2078,2393.2,2392.9,2.08923]
[1750459432003,3.2078,2393.2,2393.1,0.83565]
[1750459432203,3.2078,2393.9,2393.2,2.08902]
[1750459432403,0.83541,2393.8,2393.4,0.83552]
[1750459432603,1.4338,2393.7,2393.5,0.8355]
[1750459432902,1.4338,2393.7,2393.6,0.83547]
[1750459433402,3.2078,2393.9,2393.8,0.8354]
[1750459433607,3.2078,2393.9,2393.8,10.0134]
[1750459434606,3.2078,2393.9,2393.8,9.178]
[1750459434809,3.2078,2393.9,2393.8,10.0134]
[1750459435310,4.6302,2393.9,2393.8,10.0134]
[1750459435510,5.46557,2393.9,2393.8,9.178]
[1750459435711,4.6302,2393.9,2393.8,10.0134]
[1750459435912,4.6302,2393.9,2393.8,9.178]
[1750459436113,5.46557,2393.9,2393.8,9.178]
[1750459436414,4.6302,2393.9,2393.8,10.0134]
[1750459437515,0.83543,2393.8,2393.6,0.83545]
[1750459437706,1.3834,2393.7,2393.6,0.83545]
[1750459440005,3.2078,2393.9,2393.8,0.8354]
[1750459440706,4.04317,2393.9,2393.5,9.177]
[1750459440911,4.04329,2393.6,2393.5,0.83551]
[1750459441113,3.2078,2393.6,2393.5,9.68751]
[1750459441415,4.04327,2393.6,2393.5,8.852]
[1750459441616,5.37427,2393.6,2393.5,8.852]
[1750459442610,5.37427,2393.6,2393.5,9.68751]
[1750459443615,7.23794623,2394.4,2393.9,0.83533]
[1750459443616,3.2078,2394.0,2393.9,0.83533]
[1750459444117,4.49662623,2394.6,2393.9,0.83533]
[1750459444118,8.13146251,2397.2,2395.1,3.2078]
[1750459444309,8.13146251,2397.2,2397.1,0.83425]
[1750459444509,13.03376948,2397.1,2397.0,9.527]
[1750459444707,8.18166648,2397.1,2397.0,3.2078]
[1750459444916,8.34747135,2396.6,2396.5,3.2078]
[1750459445611,1.4059,2397.0,2396.5,4.04223]
[1750459445817,7.34741648,2396.7,2396.4,0.83447]
[1750459446023,1.419,2396.6,2396.4,7.62908466]
[1750459446216,7.34741648,2396.8,2396.5,3.2078]
[1750459446412,1.00005487,2396.7,2396.5,3.2078]
[1750459446605,2.41905487,2396.7,2396.5,3.2078]
[1750459446806,2.48839268,2396.7,2396.5,3.2078]
[1750459447013,1.06939268,2396.7,2396.6,31.14707131]
[1750459447211,0.06933781,2396.7,2396.6,31.98149509]
[1750459447416,0.06933781,2396.7,2396.6,31.98149208]
[1750459447916,1.00005487,2396.7,2396.6,31.14706208]
[1750459448122,8.34747135,2396.7,2396.6,0.39107534]
[1750459448814,8.34747135,2396.7,2396.6,10.26009158]
[1750459449012,1.00005487,2396.7,2396.6,9.869]
[1750459449208,1.00005487,2396.7,2396.6,10.70343]
[1750459449422,1.419,2397.0,2396.7,0.83439]
[1750459449719,0.06933781,2397.3,2396.9,11.67118466]
[1750459449910,7.34741648,2397.1,2397.0,1.22538262]
[1750459450111,7.34741648,2397.1,2397.0,0.39102856]
[1750459450311,9.76557135,2397.1,2396.9,10.83688466]
[1750459450514,1.00005487,2397.0,2396.9,10.83688466]
[1750459450711,1.00005487,2397.0,2396.9,12.0622365]
[1750459450912,1.4181,2397.1,2397.0,0.83429]
[1750459451111,8.76551648,2397.1,2397.0,1.22532184]
[1750459451313,9.76557135,2397.1,2397.0,1.22532551]
[1750459451510,2.41815487,2397.1,2397.0,0.83429]
[1750459451714,2.41815487,2397.1,2397.0,1.22531995]
[1750459452327,1.4181,2397.1,2397.0,1.22531995]
[1750459452519,1.4181,2397.1,2397.0,41.62431995]
[1750459452725,0.6957,2397.6,2397.3,0.83417]
[1750459452927,2.37805487,2397.5,2397.3,0.83417]
[1750459453220,1.378,2397.5,2397.4,0.83415]
[1750459453426,9.72547135,2397.5,2397.4,1.22514177]
[1750459453823,2.37805487,2397.5,2397.4,1.22514177]
[1750459454123,2.37805487,2397.5,2397.4,0.83415]
[1750459455719,1.378,2397.5,2397.4,0.83415]
[1750459455925,3.2078,2398.2,2397.8,0.83399]
[1750459456224,2.40535487,2398.1,2397.9,0.83397]
[1750459456725,2.40535487,2398.1,2397.8,0.83399]
[1750459456726,8.34747135,2398.0,2397.8,0.83399]
[1750459456913,1.4053,2397.9,2397.8,0.83399]
[1750459457112,9.75277135,2397.9,2397.8,0.83399]
[1750459458229,2.40535487,2397.9,2397.8,0.83399]
[1750459458532,4.04159,2398.5,2398.1,0.83389]
[1750459458718,7.34741648,2398.2,2398.1,0.8339]
[1750459458916,8.34747135,2398.2,2398.1,0.8339]
[1750459460317,5.29176,2399.1,2398.1,0.8339]
[1750459460318,3.21034931,2402.1,2401.0,0.83286]
[1750459460520,4.01571711,2402.6,2398.1,5.0]
[1750459460521,1.2078,2401.5,2400.8,3.2078]
[1750459460730,0.83272,2401.5,2401.4,3.2078]
[1750459460925,7.62908466,2401.6,2400.8,3.2078]
[1750459461130,5.28999,2401.1,2400.4,3.2078]
[1750459461429,0.83304,2400.6,2400.1,3.2078]
[1750459461725,0.83304,2400.6,2400.5,3.2078]
[1750459461931,5.83304,2400.6,2400.5,3.2078]
[1750459462931,5.0,2400.6,2400.5,3.2078]
[1750459464228,0.6777,2401.0,2400.5,3.2078]
[1750459464530,0.6777,2401.0,2400.8,3.2078]
[1750459464922,3.2078,2400.9,2400.5,3.2078]
[1750459465126,0.83304,2400.6,2400.5,3.2078]
[1750459465332,0.83304,2400.6,2400.2,3.2078]
[1750459465528,3.2078,2400.5,2399.8,3.2078]
[1750459465826,0.83322,2400.1,2399.8,3.2078]
[1750459466031,3.8844,2400.5,2399.8,3.2078]
[1750459466231,0.83314,2400.3,2399.8,3.2078]
[1750459466532,0.83317,2400.2,2399.8,3.2078]
[1750459467420,0.83323,2400.1,2399.8,3.2078]
[1750459467625,0.6766,2400.5,2399.8,3.2078]
[1750459467832,0.83327,2400.0,2399.8,3.2078]
[1750459468129,0.83326,2400.0,2399.8,3.2078]
[1750459468533,0.83328,2399.9,2399.8,3.2078]
[1750459469433,2.08281,2400.4,2399.8,3.2078]
[1750459469634,0.83328,2399.9,2399.8,3.2078]
[1750459469834,0.83328,2399.9,2399.8,3.59840482]
[1750459470535,0.83328,2399.9,2399.8,3.2078]
[1750459472833,0.83327,2400.0,2399.8,3.2078]
[1750459473027,1.3209,2399.9,2399.8,3.2078]
[1750459473231,1.3209,2399.9,2399.8,4.04111]
[1750459473434,1.336,2400.3,2399.8,3.2078]
[1750459473738,2.16928,2399.9,2399.8,3.2078]
[1750459473931,2.16928,2399.9,2399.8,3.59841555]
[1750459474128,2.16928,2399.9,2399.8,3.2078]
[1750459474433,1.336,2399.9,2398.9,1.6538953]
[1750459474740,1.336,2399.9,2397.8,8.99643356]
[1750459474741,3.2078,2399.1,2397.8,8.99643356]
[1750459474939,0.83387,2398.2,2397.8,3.2078]
[1750459475235,3.2078,2398.3,2398.2,0.83387]
[1750459475934,2.08398,2399.0,2398.3,0.83383]
[1750459475935,0.83379,2398.5,2398.3,0.83383]
[1750459476241,0.83375,2398.6,2398.2,3.2078]
[1750459476440,3.2078,2398.7,2398.3,0.83382]
[1750459476641,0.83375,2398.6,2398.3,0.83382]
[1750459476841,0.83381,2398.4,2398.2,0.83387]
[1750459477744,0.83381,2398.4,2398.1,15.21968]
[1750459477938,4.04161,2398.4,2398.1,15.21968]
[1750459478342,3.2078,2398.4,2398.1,14.3858]
[1750459478542,3.2078,2398.4,2398.3,0.83384]
[1750459478746,2.16235,2398.6,2398.3,0.83384]
[1750459479744,0.83377,2398.5,2398.3,0.83384]
[1750459480048,1.3636,2398.5,2398.4,0.8338]
[1750459481541,3.2078,2398.7,2398.1,16.12053]
[1750459481746,0.83369,2398.8,2398.6,0.83372]
[1750459481946,2.1973,2398.7,2398.6,0.83372]
[1750459482242,3.2078,2399.0,2398.6,3.2078]
[1750459482442,0.83364,2398.9,2398.7,0.8337]
[1750459482646,2.15034,2398.9,2398.7,0.8337]
[1750459482849,1.3167,2398.9,2398.6,0.83371]
[1750459483045,1.3167,2398.9,2397.1,3.28306986]
[1750459483046,3.2078,2398.4,2397.1,3.28306986]
[1750459483246,0.83443,2396.6,2396.4,3.28306986]
[1750459483437,3.2078,2396.6,2396.4,3.2078]
[1750459483642,3.2078,2396.6,2396.5,4.04226]
[1750459483946,3.2078,2396.6,2396.5,3.2078]
[1750459484140,3.2078,2396.6,2396.5,4.04226]
[1750459488048,3.2078,2396.6,2396.5,5.34126]
[1750459488642,3.2078,2397.2,2396.9,0.83432]
[1750459488843,4.04202,2397.2,2396.9,3.2078]
[1750459489042,4.04202,2397.2,2396.8,0.83434]
[1750459489245,4.04202,2397.2,2396.9,3.2078]
[1750459489439,4.04202,2397.2,2396.5,1.299]
[1750459489440,51.2348,2397.8,2396.5,1.299]
[1750459489647,0.83422,2397.2,2397.1,3.2078]
[1750459490145,3.2078,2397.6,2396.7,3.2078]
[1750459490455,3.2078,2397.6,2397.4,0.83415]
[1750459490747,3.2078,2397.6,2397.5,4.04191]
[1750459496155,4.0418,2397.9,2397.5,3.2078]
[1750459496356,0.83401,2397.8,2397.6,4.04186]
[1750459496654,0.83401,2397.8,2397.6,3.2078]
[1750459496856,2.24381,2397.8,2397.7,0.83404]
[1750459497362,2.24381,2397.8,2397.2,4.11639]
[1750459497363,1.4098,2397.8,2397.2,2.0309]
[1750459497559,0.83406,2397.7,2397.6,3.2078]
[1750459497752,0.83406,2397.7,2397.6,4.04188]
[1750459497952,0.83406,2397.7,2397.6,0.83408]
[1750459498161,0.83406,2397.7,2397.5,0.83409]
[1750459498457,0.83406,2397.7,2397.6,4.04188]
[1750459498755,2.24383,2397.8,2397.6,4.04188]
[1750459498955,2.24383,2397.8,2397.6,0.83408]